fUSD/lending_fUSD_20241125
["ID","MTS","AMOUNT","RATE_DAILY","PERIOD"]
[343241121,1732521039195,-516.42013229,0.00043234,30]
[343241122,1732521039204,-500.0,0.00043234,30]
[343241123,1732521039215,-500.0,0.00043234,30]
[343241124,1732521039224,-500.0,0.00043234,30]
[343241125,1732521039233,-938.28,0.00043234,30]
[343241126,1732521039242,-500.0,0.00043234,30]
[343241127,1732521039252,-500.0,0.00043234,30]
[343241128,1732521039265,-500.0,0.00043234,30]
[343241129,1732521039274,-500.0,0.00043234,30]
[343241130,1732521039283,-500.0,0.00043234,30]
[343241131,1732521039292,-200.0,0.00043234,7]
[343241132,1732521039302,-519.49895424,0.00043234,30]
[343241133,1732521039311,-300.0,0.00043234,30]
[343241134,1732521039320,-500.0,0.00043234,30]
[343241135,1732521039330,-500.0,0.00043234,30]
[343241136,1732521039339,-500.0,0.00043234,30]
[343241137,1732521039351,-500.0,0.00043234,30]
[343241138,1732521039360,-500.0,0.00043234,30]
[343241139,1732521039370,-3248.22,0.00043234,30]
[343241140,1732521039379,-500.0,0.00043234,30]
[343241141,1732521039389,-500.0,0.00043234,21]
[343241142,1732521039398,-500.0,0.00043234,30]
[343241143,1732521039407,-500.0,0.00043234,30]
[343241144,1732521039417,-500.0,0.00043234,30]
[343241145,1732521039426,-500.0,0.00043234,30]
[343241146,1732521039436,-377.82854126,0.00043234,30]
[343241147,1732521039445,-504.29578163,0.00043234,30]
[343241148,1732521039455,-9907.83,0.00043234,30]
[343241149,1732521039465,-500.0,0.00043234,30]
[343241150,1732521039474,-500.0,0.00043234,30]
[343241151,1732521039484,-500.0,0.00043234,30]
[343241152,1732521039493,-530.97,0.00043234,30]
[343241153,1732521039503,-500.0,0.00043234,30]
[343241154,1732521039512,-500.0,0.00043234,30]
[343241156,1732521039522,-560.29,0.00043234,30]
[343241157,1732521039532,-226.16,0.00043234,30]
[343241158,1732521039542,-500.0,0.00043234,30]
[343241159,1732521039551,-500.0,0.00043234,30]
[343241160,1732521039561,-500.0,0.00043234,30]
[343241161,1732521039571,-524.76368611,0.00043234,30]
[343241162,1732521039580,-500.0,0.00043234,30]
[343241163,1732521039590,-500.0,0.00043234,30]
[343241164,1732521039607,-500.0,0.00043234,30]
[343241165,1732521039617,-246.19891578,0.00043234,30]
[343241166,1732521039626,-500.0,0.00043234,30]
[343241167,1732521039636,-500.0,0.00043234,30]
[343241168,1732521039649,-500.0,0.00043234,30]
[343241169,1732521039659,-8532.29,0.00043234,30]
[343241170,1732521039668,-500.0,0.00043234,30]
[343241171,1732521039678,-1469.51,0.00043234,30]
[343241172,1732521039688,-500.0,0.00043234,30]
[343241173,1732521039697,-500.0,0.00043234,30]
[343241174,1732521039706,-500.0,0.00043234,30]
[343241175,1732521039716,-500.0,0.00043234,30]
[343241176,1732521039725,-508.11189223,0.00043234,30]
[343241177,1732521039734,-500.0,0.00043234,30]
[343241178,1732521039744,-500.0,0.00043234,30]
[343241179,1732521039759,-500.0,0.00043234,30]
[343241180,1732521039777,-500.0,0.00043234,30]
[343241181,1732521039789,-500.0,0.00043234,30]
[343241182,1732521039798,-568.83,0.00043234,30]
[343241183,1732521039808,-2595.47411542,0.00043234,30]
[343241205,1732521066285,-1101.41588458,0.00043234,30]
[343241206,1732521066294,-500.0,0.00043234,30]
[343241207,1732521066303,-500.0,0.00043234,30]
[343241208,1732521066312,-500.0,0.00043234,30]
[343241209,1732521066322,-500.0,0.00043234,30]
[343241210,1732521066331,-500.0,0.00043234,30]
[343241211,1732521066340,-500.0,0.00043234,30]
[343241212,1732521066349,-500.0,0.00043234,30]
[343241213,1732521066359,-526.39454114,0.00043234,30]
[343241214,1732521066370,-500.0,0.00043234,30]
[343241215,1732521066380,-554.10103478,0.00043234,30]
[343241216,1732521066391,-3912.65774206,0.00043234,30]
[343241217,1732521066403,-1559.06122316,0.00043234,30]
[343241218,1732521066413,-500.0,0.00043234,30]
[343241219,1732521066422,-809.67,0.00043234,30]
[343241220,1732521066432,-500.0,0.00043234,30]
[343241221,1732521066442,-4195.65,0.00043234,30]
[343241222,1732521066451,-500.0,0.00043234,30]
[343241223,1732521066461,-3051.25870398,0.00043234,30]
[343241224,1732521066472,-853.30129602,0.00043234,30]
[343241225,1732521066481,-141.00202789,0.00043234,30]
[343241226,1732521066806,-260.95905856,0.00043233,30]
[343241227,1732521066817,-239.04094144,0.00043233,30]
[343241228,1732521066827,-834.00797211,0.00043234,30]
[343241229,1732521066836,-500.0,0.00043234,30]
[343241230,1732521066845,-500.0,0.00043234,30]
[343241231,1732521066855,-500.0,0.00043234,30]
[343241232,1732521066866,-1141.46,0.00043234,30]
[343241233,1732521066876,-1190.69,0.00043234,30]
[343241234,1732521066885,-342.36078315,0.00043234,30]
[343241235,1732521066897,-1328.54160683,0.00043234,30]
[343241236,1732521066909,-29.85761002,0.00043234,30]
[343241237,1732521066919,-500.0,0.00043234,30]
[343241238,1732521066928,-119.72828933,0.00043234,30]
[343241239,1732521066939,-380.27171067,0.00043234,30]
[343241240,1732521066949,-1016.77333933,0.00043234,30]
[343241241,1732521066976,-695.62666067,0.00043234,30]
[343241242,1732521066985,-485.75240932,0.00043234,30]
[343241243,1732521066995,-500.0,0.00043234,30]
[343241244,1732521067004,-543.24,0.00043234,30]
[343241245,1732521067014,-500.0,0.00043234,30]
[343241246,1732521067023,-301.53597911,0.00043234,30]
[343241247,1732521067035,-198.46402089,0.00043234,30]
[343241248,1732521067044,-500.0,0.00043234,30]
[343241249,1732521067054,-500.0,0.00043234,30]
[343241250,1732521067064,-2820.62725873,0.00043234,30]
[343241251,1732521067077,-315.6,0.00043234,30]
[343241252,1732521067433,-1544.28127879,0.00043234,30]
[343241253,1732521067525,-500.0,0.00043233,30]
[343241254,1732521067535,-1189.18146248,0.00043234,30]
[343241255,1732521067547,-500.0,0.00043234,30]
[343241256,1732521067556,-500.0,0.00043234,30]
[343241257,1732521067565,-563.81,0.00043234,30]
[343241258,1732521067575,-500.0,0.00043234,30]
[343241259,1732521067584,-1005.73,0.00043234,30]
[343241260,1732521067594,-370.28082788,0.00043234,30]
[343241261,1732521067603,-829.08010809,0.00043234,30]
[343241262,1732521067614,-2599.47989191,0.00043234,30]
[343241263,1732521067625,-500.0,0.00043234,30]
[343241264,1732521067635,-500.0,0.00043234,30]
[343241265,1732521067644,-500.0,0.00043234,30]
[343241266,1732521067657,-500.0,0.00043234,30]
[343241267,1732521067668,-1348.57634622,0.00043234,30]
[343241268,1732521067680,-3662.26365378,0.00043234,30]
[343241269,1732521067689,-323.39620589,0.00043234,30]
[343241270,1732521067701,-500.0,0.00043234,30]
[343241271,1732521067710,-500.0,0.00043234,30]
[343241272,1732521067720,-82.21538606,0.00043234,30]
[343241273,1732521067732,-417.78461394,0.00043234,30]
[343241274,1732521067741,-500.0,0.00043234,30]
[343241275,1732521067752,-2490.13453334,0.00043234,30]
[343241276,1732521067768,-11176.9921773,0.00043234,30]
[343241277,1732521067779,-14717.63328936,0.00043234,30]
[343241278,1732521067789,-608.73,0.00043234,30]
[343241279,1732521067799,-1249.09,0.00043234,30]
[343241280,1732521067809,-562.74231272,0.00043234,30]
[343241281,1732521067818,-500.0,0.00043234,30]
[343241282,1732521067828,-500.0,0.00043234,2]
[343241283,1732521067838,-500.0,0.00043234,2]
[343241284,1732521067847,-500.0,0.00043234,2]
[343241285,1732521067858,-500.0,0.00043234,2]
[343241286,1732521067868,-500.0,0.00043234,30]
[343241287,1732521067877,-500.0,0.00043234,30]
[343241288,1732521067886,-500.0,0.00043234,30]
[343241289,1732521067896,-500.0,0.00043234,30]
[343241290,1732521067906,-643.4560443,0.00043234,30]
[343241291,1732521067915,-500.0,0.00043234,30]
[343241292,1732521067924,-3800.0,0.00043234,30]
[343241293,1732521067934,-1179.81,0.00043234,30]
[343241294,1732521067943,-500.0,0.00043234,30]
[343241295,1732521067951,-500.0,0.00043234,30]
[343241296,1732521067960,-500.0,0.00043234,30]
[343241297,1732521067970,-500.0,0.00043234,30]
[343241298,1732521067979,-557.83,0.00043234,30]
[343241299,1732521067988,-500.0,0.00043234,30]
[343241300,1732521067998,-500.0,0.00043234,30]
[343241301,1732521068007,-819.27,0.00043234,30]
[343241302,1732521068017,-500.0,0.00043234,30]
[343241303,1732521068027,-500.0,0.00043234,30]
[343241304,1732521068036,-150.0,0.00043234,30]
[343241305,1732521068046,-500.0,0.00043234,30]
[343241306,1732521068055,-500.0,0.00043234,30]
[343241307,1732521068064,-500.0,0.00043234,30]
[343241308,1732521068074,-500.0,0.00043234,30]
[343241309,1732521068084,-500.0,0.00043234,30]
[343241310,1732521068094,-500.0,0.00043234,30]
[343241311,1732521068246,-500.0,0.00043234,30]
[343241312,1732521068257,-500.0,0.00043234,30]
[343241313,1732521068267,-500.0,0.00043234,30]
[343241314,1732521068277,-1139.66794098,0.00043234,30]
[343241315,1732521068300,-3.56411903,0.00043234,30]
[343241316,1732521068312,-2235.91793999,0.00043234,30]
[343241317,1732521068323,-500.0,0.00043234,30]
[343241318,1732521068333,-500.0,0.00043234,30]
[343241319,1732521068342,-500.0,0.00043234,30]
[343241320,1732521068352,-541.84935894,0.00043234,30]
[343241321,1732521068361,-487.49490443,0.00043234,30]
[343241322,1732521068378,-12.50509557,0.00043234,30]
[343241323,1732521068387,-614.08,0.00043234,30]
[343241324,1732521068397,-524.34910885,0.00043234,30]
[343241325,1732521068407,-500.0,0.00043234,30]
[343241326,1732521068417,-500.0,0.00043234,30]
[343241327,1732521068427,-500.0,0.00043234,30]
[343241328,1732521068437,-500.0,0.00043234,30]
[343241329,1732521068446,-500.0,0.00043234,30]
[343241330,1732521068456,-500.0,0.00043234,30]
[343241331,1732521068466,-5172.08,0.00043234,30]
[343241332,1732521068476,-500.0,0.00043234,30]
[343241333,1732521068485,-500.0,0.00043234,30]
[343241334,1732521068494,-500.0,0.00043234,30]
[343241335,1732521068503,-1167.5,0.00043234,30]
[343241336,1732521068513,-500.0,0.00043234,30]
[343241337,1732521068522,-500.0,0.00043234,30]
[343241338,1732521068532,-516.92642993,0.00043234,30]
[343241339,1732521068542,-500.0,0.00043234,30]
[343241340,1732521068551,-2637.7209,0.00043235,2]
[343241341,1732521068561,-14638.89256794,0.00043235,2]
[343241342,1732521068572,-3479.7,0.00043235,2]
[343241343,1732521068584,-2082.0,0.00043235,2]
[343241344,1732521068595,-407.7285721,0.00043235,2]
[343241345,1732521068640,-5866.5250012,0.00043235,2]
[343241346,1732521068654,-10538.16399998,0.00043235,2]
[343241347,1732521068666,-2194.57056332,0.00043235,2]
[343241348,1732521069136,-449.76239455,0.00043235,2]
[343241349,1732521069152,-1701.35,0.00043235,2]
[343241350,1732521069165,-44119.16131781,0.00043235,2]
[343241351,1732521069177,-14522.1455831,0.00043235,2]
[343241352,1732521069186,-444982.49059829,0.00043235,2]
[343241353,1732521069197,-68107.3313816,0.00043235,2]
[343241354,1732521069209,-853.29617181,0.00043235,2]
[343241355,1732521069220,-260.20227128,0.00043235,2]
[343241356,1732521069232,-3460.76994827,0.00043235,2]
[343241357,1732521069245,-4658.43107763,0.00043235,2]
[343241358,1732521069256,-1787.36724828,0.00043235,2]
[343241360,1732521207264,342.0,0.000308,2]
[343241361,1732521257567,150.0,0.00032,2]
[343241362,1732521335108,150.0,0.000352,2]
[343241363,1732521639975,450.0,0.00034,3]
[343241364,1732521655290,450.0,0.00035,3]
[343241365,1732521658681,155.52,0.00030685,2]
[343241367,1732521809933,308.0,0.000308,2]
[343241368,1732521810577,277.0,0.000308,2]
[343241370,1732522087162,701.41100489,0.0001,2]
[343241376,1732522231828,-318.4581,0.00039888,7]
[343241377,1732522231838,-1142.85,0.00040073,2]
[343241378,1732522231848,-1268.11371399,0.00041681,2]
[343241379,1732522231858,-150.42,0.00041781,2]
[343241380,1732522231868,-3336.22,0.00041852,2]
[343241381,1732522231877,-1157.47299927,0.00041891,2]
[343241382,1732522231934,-110.64071471,0.00041891,2]
[343241383,1732522231944,-250.0,0.00041991,2]
[343241384,1732522231953,-1558.86623232,0.00041991,2]
[343241385,1732522231965,-1181.32532351,0.00041991,2]
[343241386,1732522231988,-21159.80844417,0.00041991,2]
[343241387,1732522231998,-500.0,0.00041991,2]
[343241388,1732522232007,-4195.0,0.0004222,120]
[343241389,1732522232018,-398.85,0.00042227,120]
[343241390,1732522232027,-166.89,0.00042337,2]
[343241391,1732522232037,-1989.38713998,0.00042337,2]
[343241418,1732522237666,-540.65357155,0.00041892,2]
[343241419,1732522237773,-459.34642845,0.00041892,2]
[343241420,1732522237782,-8010.60286002,0.00042337,2]
[343241421,1732522237791,-630.76605475,0.00042337,2]
[343241422,1732522237802,-535.74786695,0.00042337,2]
[343241423,1732522237813,-4392.91305409,0.00042337,2]
[343241424,1732522237826,-1582.45302421,0.00042337,2]
[343241425,1732522237835,-1142.85,0.00042337,2]
[343241426,1732522237844,-150.99,0.00042343,2]
[343241427,1732522237853,-330.86,0.00042343,2]
[343241428,1732522237863,-463.068,0.00042412,64]
[343241429,1732522237872,-168.5,0.00042413,2]
[343241430,1732522237881,-571.36,0.00042413,2]
[343241431,1732522237890,-169.33,0.00042413,2]
[343241432,1732522237899,-248.0,0.00042413,2]
[343241433,1732522237908,-250.0,0.00042413,120]
[343241434,1732522237917,-150.0,0.00042448,2]
[343241435,1732522237926,-155.52,0.00042496,2]
[343241436,1732522237936,-400.0,0.000425,15]
[343241437,1732522237945,-239.56015264,0.000426,15]
[343241438,1732522237956,-660.43984736,0.000426,15]
[343241439,1732522237965,-154.11,0.00042632,120]
[343241440,1732522237977,-1400.0,0.000427,15]
[343241441,1732522237986,-1500.0,0.00042761,7]
[343241442,1732522237996,-281.96,0.000428,30]
[343241443,1732522238005,-1900.0,0.000428,15]
[343241444,1732522238015,-150.0,0.00042815,2]
[343241445,1732522238025,-150.0,0.00042816,2]
[343241446,1732522238035,-1262.0,0.00042836,2]
[343241447,1732522238044,-816.0,0.00042836,2]
[343241448,1732522238054,-3753.0,0.00042836,2]
[343241449,1732522238063,-236.604,0.00042836,2]
[343241450,1732522238077,-150.0,0.00042837,2]
[343241451,1732522238088,-298.042,0.00042847,2]
[343241452,1732522238097,-150.0,0.00042884,2]
[343241453,1732522238106,-1203.63233061,0.00042895,7]
[343241454,1732522238129,-296.36766939,0.00042895,7]
[343241455,1732522238138,-56.23233061,0.00042897,2]
[343241456,1732522238154,-93.76766939,0.00042897,2]
[343241457,1732522238163,-1412.22772561,0.000429,15]
[343241458,1732522238186,-987.77227439,0.000429,15]
[343241459,1732522238195,-906.19267698,0.00042932,15]
[343241460,1732522238205,-310.95956301,0.00042933,2]
[343241462,1732522238215,-340.71056734,0.00042933,2]
[343241465,1732522238227,-566.76354058,0.00042933,2]
[343241467,1732522238240,-478.31959918,0.00042933,2]
[343241469,1732522238251,-2385.47819203,0.00042933,2]
[343241471,1732522238263,-1343.77763786,0.00042933,2]
[343241473,1732522238272,-248.64694081,0.00042933,2]
[343241475,1732522238283,-323.79921957,0.00042933,2]
[343241478,1732522238294,-358.33485164,0.00042933,2]
[343241489,1732522240128,-150.0,0.00042915,2]
[343241491,1732522240138,-2527.88858798,0.00042933,2]
[343241492,1732522240148,-304.67935079,0.00042933,2]
[343241494,1732522240158,-457.467,0.0004296,120]
[343241496,1732522240168,-150.0,0.00042974,2]
[343241497,1732522240177,-2295.95491123,0.00043,2]
[343241498,1732522240189,-726.73999941,0.00043,2]
[343241499,1732522240216,-741.329995,0.00043,2]
[343241500,1732522240245,-793.8851621,0.00043,2]
[343241501,1732522240261,-4883.87071231,0.00043,2]
[343241502,1732522240276,-388.8658327,0.00043,2]
[343241503,1732522240287,-1529.71319782,0.00043,2]
[343241504,1732522240309,-4446.65459,0.00043,2]
[343241505,1732522240324,-668.235384,0.00043,2]
[343241511,1732522243072,-2253.16945896,0.00043,2]
[343241512,1732522243084,-2631.09331214,0.00043,2]
[343241513,1732522243176,-4407.40204433,0.00043,2]
[343241514,1732522243185,-500.0,0.00043032,30]
[343241515,1732522243195,-500.0,0.00043032,30]
[343241516,1732522243204,-500.0,0.00043032,30]
[343241517,1732522243214,-86.1825245,0.00043032,30]
[343241518,1732522243335,-330.5,0.00043032,30]
[343241519,1732522243463,-1575.3774755,0.00043032,30]
[343241520,1732522243480,-506.09821563,0.00043032,30]
[343241521,1732522243489,-204.34602601,0.00043032,30]
[343241523,1732522245699,-434.538,0.0004296,120]
[343241524,1732522245710,-303.22625398,0.00043032,30]
[343241525,1732522245719,-500.0,0.00043032,30]
[343241526,1732522245729,-500.0,0.00043032,30]
[343241527,1732522245739,-500.0,0.00043032,30]
[343241528,1732522245749,-500.0,0.00043032,30]
[343241529,1732522245758,-554.23774428,0.00043032,30]
[343241530,1732522245768,-500.0,0.00043032,30]
[343241531,1732522245778,-500.0,0.00043032,30]
[343241532,1732522245787,-500.0,0.00043032,30]
[343241533,1732522245797,-121.66119501,0.00043032,30]
[343241534,1732522245819,-378.33880499,0.00043032,30]
[343241535,1732522245837,-500.0,0.00043032,30]
[343241536,1732522245846,-500.0,0.00043032,30]
[343241537,1732522245856,-450.21610641,0.00043032,30]
[343241538,1732522245866,-500.0,0.00043032,30]
[343241539,1732522245876,-500.0,0.00043032,30]
[343241540,1732522245886,-504.65245772,0.00043032,30]
[343241541,1732522245895,-500.0,0.00043032,30]
[343241542,1732522245905,-500.0,0.00043032,30]
[343241543,1732522245915,-345.25549701,0.00043032,30]
[343241544,1732522245924,-559.07173746,0.00043032,30]
[343241545,1732522245933,-500.0,0.00043032,30]
[343241546,1732522245943,-500.0,0.00043032,30]
[343241547,1732522245952,-500.0,0.00043032,30]
[343241548,1732522245961,-500.0,0.00043032,30]
[343241549,1732522245971,-500.0,0.00043032,30]
[343241550,1732522245983,-500.0,0.00043032,30]
[343241551,1732522245993,-273.61779853,0.00043032,30]
[343241552,1732522246002,-500.0,0.00043032,30]
[343241553,1732522246012,-500.0,0.00043032,30]
[343241554,1732522246022,-500.0,0.00043032,30]
[343241555,1732522246032,-177.89017791,0.00043032,30]
[343241556,1732522246077,-322.10982209,0.00043032,30]
[343241557,1732522246086,-500.0,0.00043032,30]
[343241558,1732522246096,-4956.58,0.00043032,30]
[343241559,1732522246106,-500.0,0.00043032,30]
[343241560,1732522246115,-500.0,0.00043032,30]
[343241561,1732522246125,-516.34635534,0.00043032,30]
[343241562,1732522246134,-511.88927082,0.00043032,30]
[343241563,1732522246143,-1965.47455175,0.00043032,30]
[343241564,1732522246291,-4611.32544825,0.00043032,30]
[343241565,1732522246300,-500.0,0.00043032,30]
[343241566,1732522246310,-500.0,0.00043032,30]
[343241567,1732522246319,-500.0,0.00043032,30]
[343241568,1732522246331,-7595.87192712,0.00043032,30]
[343241569,1732522246342,-1480.74567073,0.00043032,30]
[343241572,1732522663111,-311.33,0.0004177,120]
[343241573,1732522663137,-250.0,0.00042092,120]
[343241574,1732522664526,160.28,0.00030685,2]
[343241576,1732522686424,-154.11,0.00042327,120]
[343241582,1732523252139,7077.17226626,1e-06,7]
[343241618,1732523431908,-4695.02526221,0.00036,90]
[343241619,1732523431918,-187.11425297,0.00039316,2]
[343241620,1732523431928,-155.51896767,0.00039416,117]
[343241621,1732523431937,-1028.56,0.00039516,2]
[343241622,1732523431946,-160.28,0.00040349,2]
[343241623,1732523431956,-1616.91645438,0.000411,2]
[343241624,1732523431968,-150.52,0.00041213,2]
[343241625,1732523431978,-457.08,0.00041275,2]
[343241626,1732523431987,-250.0,0.00041302,120]
[343241627,1732523431997,-1000.0,0.00041348,2]
[343241628,1732523432006,-154.11,0.0004148,120]
[343241629,1732523432015,-250.0,0.00041566,2]
[343241630,1732523432025,-161.87,0.00041675,2]
[343241631,1732523432034,-161.87,0.00041716,2]
[343241632,1732523432043,-161.87,0.00041758,2]
[343241633,1732523432053,-1028.56,0.0004178,2]
[343241634,1732523432062,-1500.0,0.00041781,7]
[343241635,1732523432071,-23900.0,0.00041793,2]
[343241636,1732523432080,-161.87,0.000418,2]
[343241637,1732523432089,-161.87,0.00041841,2]
[343241638,1732523432101,-161.87,0.00041883,2]
[343241639,1732523432111,-1500.0,0.00041979,7]
[343241640,1732523432119,-174.999999,0.00042,2]
[343241641,1732523432129,-255.1,0.00042,30]
[343241642,1732523432138,-1531.0,0.00042175,30]
[343241643,1732523432147,-1500.0,0.00042177,7]
[343241644,1732523432158,-500.0,0.00042327,120]
[343241645,1732523432168,-2000.0,0.00042327,120]
[343241646,1732523432177,-500.0,0.00042327,120]
[343241647,1732523432186,-500.0,0.00042327,120]
[343241648,1732523432196,-200.0,0.00042327,120]
[343241649,1732523432205,-1500.0,0.00042391,7]
[343241650,1732523432214,-1500.0,0.00042415,7]
[343241651,1732523432223,-1500.0,0.00042463,7]
[343241652,1732523432232,-742.24847,0.000426,14]
[343241653,1732523432241,-1500.0,0.00042664,7]
[343241655,1732523432250,-1500.0,0.00042688,7]
[343241657,1732523432259,-1494.99913169,0.00042699,7]
[343241659,1732523432269,-150.0,0.0004272,2]
[343241661,1732523432279,-150.0,0.00042736,2]
[343241663,1732523432289,-150.0,0.00042768,2]
[343241665,1732523432298,-150.0,0.00042774,2]
[343241667,1732523432308,-150.0,0.00042785,2]
[343241669,1732523432318,-500.03,0.00042789,2]
[343241671,1732523432327,-500.0,0.00042789,2]
[343241673,1732523432341,-500.0,0.00042789,2]
[343241675,1732523432350,-150.0,0.00042798,2]
[343241677,1732523432360,-150.0,0.00042806,2]
[343241680,1732523432370,-150.0,0.00042822,2]
[343241682,1732523432380,-150.0,0.00042822,2]
[343241684,1732523432389,-500.0,0.00042822,2]
[343241686,1732523432398,-515.2625,0.0004283,2]
[343241688,1732523432410,-2500.0,0.0004283,2]
[343241690,1732523432419,-359.73882123,0.0004283,15]
[343241691,1732523432428,-170.06948319,0.0004283,9]
[343241694,1732523432438,-304.67935079,0.0004283,2]
[343241696,1732523432447,-500.0,0.00042832,2]
[343241697,1732523432457,-150.0,0.00042839,2]
[343241700,1732523432466,-156.60634109,0.00042839,2]
[343241701,1732523432476,-150.0,0.00042853,2]
[343241703,1732523432485,-150.0,0.00042856,2]
[343241705,1732523432494,-150.0,0.00042869,2]
[343241707,1732523432504,-500.0,0.00042878,2]
[343241709,1732523432513,-1500.0,0.00042881,7]
[343241711,1732523432522,-500.0,0.00042889,2]
[343241714,1732523432531,-189.38,0.0004289,10]
[343241715,1732523432541,-157.82,0.0004289,10]
[343241717,1732523432550,-150.0,0.00042891,2]
[343241720,1732523432559,-1500.0,0.00042896,7]
[343241730,1732523432777,-150.0,0.00042898,2]
[343241731,1732523432787,-659.9162,0.000429,2]
[343241732,1732523432796,-157.8367,0.000429,2]
[343241733,1732523432806,-44946.2212,0.000429,2]
[343241734,1732523432816,-150.0,0.00042912,2]
[343241735,1732523432825,-150.0,0.00042919,2]
[343241736,1732523432835,-223.08743754,0.0004292,7]
[343241737,1732523432844,-468.2,0.00042922,66]
[343241738,1732523432854,-294936.33470897,0.00042929,14]
[343241739,1732523432868,-1004.24596742,0.00042929,14]
[343241740,1732523432969,-81875.02165,0.00042929,14]
[343241741,1732523432980,-105320.04591664,0.00042929,14]
[343241742,1732523433041,-3292.7058779,0.00042929,14]
[343241743,1732523433052,-3479.91975,0.00042929,14]
[343241744,1732523433064,-8095.6609554,0.00042929,14]
[343241745,1732523433085,-8583.79127062,0.00042929,14]
[343241746,1732523433097,-410.68951625,0.00042929,14]
[343241747,1732523433108,-60263.53821323,0.00042929,14]
[343241750,1732523437958,-23900.0,0.00041968,2]
[343241751,1732523437969,-789.12,0.0004289,10]
[343241752,1732523437979,-150.0,0.00042903,2]
[343241753,1732523437989,-550.90697527,0.00042928,31]
[343241754,1732523437999,-13378.73132473,0.00042929,14]
[343241755,1732523438011,-67614.22393242,0.00042929,14]
[343241756,1732523438189,-34553.08583701,0.00042929,14]
[343241757,1732523438240,-30669.537978,0.00042929,14]
[343241758,1732523438251,-6588.79119561,0.00042929,14]
[343241764,1732523439927,-2039.87000003,0.00042929,14]
[343241765,1732523439939,-357.97931399,0.00042929,14]
[343241766,1732523439990,-64310.90100514,0.00042929,14]
[343241767,1732523440049,-24528.75,0.00042929,14]
[343241768,1732523440195,-11400.62222114,0.00042929,14]
[343241769,1732523440209,-2589.204264,0.00042929,14]
[343241770,1732523440223,-682.12,0.00042929,14]
[343241771,1732523440238,-1103.395,0.00042929,14]
[343241772,1732523440249,-169996.24501,0.00042929,14]
[343241773,1732523440367,-26557.40967846,0.00042929,14]
[343241774,1732523440381,-81705.47704414,0.00042929,14]
[343241775,1732523440394,-31289.93000625,0.00042929,14]
[343241780,1732523442883,-806.17,0.00042919,10]
[343241781,1732523442892,-3716.37792829,0.00042929,14]
[343241782,1732523442939,-3200.23999099,0.00042929,14]
[343241783,1732523442951,-4795.8186997,0.00042929,14]
[343241784,1732523442962,-5885.7,0.00042929,14]
[343241785,1732523443050,-711.11512966,0.00042929,14]
[343241786,1732523443061,-12700.99999837,0.00042929,14]
[343241787,1732523443106,-752.44143339,0.00042929,14]
[343241788,1732523443217,-273.48327496,0.00042929,14]
[343241789,1732523443228,-457.959999,0.00042929,14]
[343241802,1732523446009,-525.82032,0.00042929,14]
[343241803,1732523446020,-784.3925607,0.00042929,14]
[343241804,1732523446075,-4303.39821139,0.00042929,14]
[343241805,1732523571680,180.0,0.00042,120]
[343241806,1732523602322,458.09988289,0.000429,30]
[343241807,1732523619606,10361.90011711,0.00041722,30]
[343241814,1732524011711,159.9,0.00030685,2]
[343241815,1732524203368,413.0,0.00038,30]
[343241824,1732524574531,250.0,0.00031,2]
[343241825,1732524575686,300.0,0.00033,2]
[343241826,1732524576781,350.0,0.00035,2]
[343241829,1732524617806,151.0,0.0003,120]
[343241830,1732524618702,151.0,0.00032301,120]